fUST/lending_fUST_20240917
["ID","MTS","AMOUNT","RATE_DAILY","PERIOD"]
[338392477,1726581072932,500.0,0.00025,120]
[338392478,1726581073224,677.46,0.00025,120]
[338392483,1726581073443,1690.62,0.00025,120]
[338392491,1726581074069,508.47039928,0.00025,120]
[338392493,1726581074138,631.78,0.00025,120]
[338392503,1726581075021,500.0,0.00025,120]
[338392511,1726581075803,766.45,0.00025,120]
[338392514,1726581076185,1623.78,0.00025,120]
[338392519,1726581076514,500.0,0.00025,120]
[338392521,1726581076585,500.0,0.00025,120]
[338392524,1726581076759,500.0,0.00025,120]
[338392544,1726581078101,500.0,0.00025,120]
[338392546,1726581078284,501.42477107,0.00025,120]
[338392561,1726581079196,2429.11,0.00025,120]
[338392564,1726581079285,1951.31,0.00025,120]
[338392570,1726581079764,500.0,0.00025,120]
[338392583,1726581080655,500.0,0.00025,120]
[338392585,1726581080820,759.63,0.00025,120]
[338392586,1726581080881,678.97,0.00025,120]
[338392597,1726581081628,500.0,0.00025,120]
[338392600,1726581081746,953.98,0.00025,120]
[338392607,1726581082194,889.53,0.00025,120]
[338392645,1726581084882,2869.35,0.00025,120]
[338392658,1726581085542,1276.6,0.00025,120]
[338392668,1726581085983,3070.64,0.00025,120]
[338392675,1726581086526,500.0,0.00025,120]
[338392677,1726581086575,500.0,0.00025,120]
[338392698,1726581088085,289.11626695,0.00025,120]
[338392705,1726581088503,2299.7,0.00025,120]
[338392719,1726581089541,500.0,0.00025,120]
[338392727,1726581090016,500.0,0.00025,120]
[338392731,1726581090219,500.0,0.00025,120]
[338392735,1726581090460,1113.63,0.00025,120]
[338392737,1726581090509,500.0,0.00025,120]
[338392739,1726581090688,812.26,0.00025,120]
[338392742,1726581090949,3900.13,0.00025,120]
[338392746,1726581091156,500.0,0.00025,120]
[338392756,1726581091926,500.0,0.00025,120]
[338392757,1726581092003,552.67,0.00025,120]
[338392758,1726581092082,500.0,0.00025,120]
[338392774,1726581093732,3089.18,0.00025,120]
[338392781,1726581094165,3669.11,0.00025,120]
[338392794,1726581095120,500.0,0.00025,120]
[338392804,1726581095572,3086.58,0.00025,120]
[338392811,1726581095860,1448.65,0.00025,120]
[338392816,1726581096034,500.0,0.00025,120]
[338392832,1726581097052,569.46,0.00025,120]
[338392835,1726581097128,500.0,0.00025,120]
[338392843,1726581097538,500.0,0.00025,120]
[338392889,1726581099742,500.0,0.00025,120]
[338392894,1726581099897,2435.89,0.00025,120]
[338392896,1726581099958,988.83,0.00025,120]
[338392900,1726581100119,2435.89,0.00025,120]
[338392903,1726581100246,500.0,0.00025,120]
[338392905,1726581100358,2435.89,0.00025,120]
[338392908,1726581100618,2435.89,0.00025,120]
[338392913,1726581100911,2435.89,0.00025,120]
[338392918,1726581101187,2435.89,0.00025,120]
[338392925,1726581101465,2435.89,0.00025,120]
[338392926,1726581101524,500.0,0.00025,120]
[338392933,1726581101786,2435.89,0.00025,120]
[338392938,1726581101974,500.0,0.00025,120]
[338392941,1726581102068,2435.89,0.00025,120]
[338392947,1726581102339,2435.89,0.00025,120]
[338392952,1726581102628,2435.89,0.00025,120]
[338392956,1726581102891,2435.89,0.00025,120]
[338392962,1726581103168,2435.89,0.00025,120]
[338392966,1726581103277,500.0,0.00025,120]
[338392967,1726581103460,2435.89,0.00025,120]
[338392968,1726581103702,2435.89,0.00025,120]
[338392969,1726581103989,2435.89,0.00025,120]
[338392973,1726581104253,2435.89,0.00025,120]
[338392975,1726581104310,14162.1,0.00025,120]
[338392977,1726581104533,2435.89,0.00025,120]
[338392979,1726581104737,560.51,0.00025,120]
[338392980,1726581104812,2435.89,0.00025,120]
[338392983,1726581104959,182.57761998,0.00025,120]
[338392986,1726581105071,2435.89,0.00025,120]
[338392994,1726581105393,2435.89,0.00025,120]
[338392997,1726581105518,500.0,0.00025,120]
[338392999,1726581105653,2435.89,0.00025,120]
[338393003,1726581105855,550.61,0.00025,120]
[338393005,1726581105971,2435.89,0.00025,120]
[338393007,1726581106026,787.53,0.00025,120]
[338393009,1726581106233,2435.90674413,0.00025,120]
[338393012,1726581106333,500.0,0.00025,120]
[338393032,1726581107410,500.0,0.00025,120]
[338393036,1726581107536,1852.74,0.00025,120]
[338393042,1726581107788,500.0,0.00025,120]
[338393062,1726581109157,500.0,0.00025,120]
[338393064,1726581109251,567.96,0.00025,120]
[338393077,1726581110501,3138.27,0.00025,120]
[338393096,1726581111714,500.0,0.00025,120]
[338393116,1726581112908,500.0,0.00025,120]
[338393117,1726581113319,1433.92,0.00025,120]
[338393118,1726581113518,500.0,0.00025,120]
[338393120,1726581113816,770.5,0.00025,120]
[338393123,1726581114049,500.0,0.00025,120]
[338393126,1726581114528,500.0,0.00025,120]
[338393132,1726581114758,847.7,0.00025,120]
[338393178,1726581117325,2659.65,0.00025,120]
[338393185,1726581117715,500.0,0.00025,120]
[338393188,1726581117831,500.0,0.00025,120]
[338393190,1726581117880,500.0,0.00025,120]
[338393193,1726581117959,971.44,0.00025,120]
[338393195,1726581118002,556.26,0.00025,120]
[338393199,1726581118275,750.51,0.00025,120]
[338393208,1726581118719,2735.35,0.00025,120]
[338393218,1726581119169,1174.97,0.00025,120]
[338393221,1726581119257,500.0,0.00025,120]
[338393226,1726581119760,284.94627145,0.00025,120]
[338393229,1726581120126,500.0,0.00025,120]
[338393246,1726581121829,500.0,0.00025,120]
[338393254,1726581122220,500.0,0.00025,120]
[338393263,1726581122762,500.0,0.00025,120]
[338393279,1726581123619,500.0,0.00025,120]
[338393282,1726581123743,3279.8,0.00025,120]
[338393296,1726581125272,757.05,0.00025,120]
[338393315,1726581126555,500.0,0.00025,120]
[338393321,1726581126955,500.0,0.00025,120]
[338393334,1726581127797,500.0,0.00025,120]
[338393337,1726581127873,1434.78,0.00025,120]
[338393340,1726581127982,500.0,0.00025,120]
[338393345,1726581128196,223.49469264,0.00025,120]
[338393352,1726581128976,598.1667228,0.00025,120]
[338393353,1726581130907,500.0,0.00025,120]
[338393354,1726581131234,500.0,0.00025,120]
[338393355,1726581131684,2967.28,0.00025,120]
[338393356,1726581132101,511.62157789,0.00025,120]
[338393357,1726581132527,1096.37,0.00025,120]
[338393358,1726581133468,919.82,0.00025,120]
[338393359,1726581135160,751.56,0.00025,120]
[338393360,1726581135892,500.0,0.00025,120]
[338393361,1726581136590,500.0,0.00025,120]
[338393362,1726581137482,500.0,0.00025,120]
[338393363,1726581138294,500.0,0.00025,120]
[338393364,1726581138473,500.0,0.00025,120]
[338393365,1726581140405,682.4,0.00025,120]
[338393366,1726581140454,610.02,0.00025,120]
[338393367,1726581140650,856.97,0.00025,120]
[338393368,1726581141841,2971.48,0.00025,120]
[338393369,1726581141890,500.0,0.00025,120]
[338393370,1726581142449,3074.59,0.00025,120]
[338393371,1726581144961,500.98562357,0.00025,120]
[338393372,1726581145514,500.0,0.00025,120]
[338393373,1726581145574,500.0,0.00025,120]
[338393374,1726581145642,1687.88,0.00025,120]
[338393375,1726581147021,779.44,0.00025,120]
[338393376,1726581147144,500.0,0.00025,120]
[338393377,1726581148002,902.23,0.00025,120]
[338393378,1726581148442,500.0,0.00025,120]
[338393380,1726581150710,500.0,0.00025,120]
[338393381,1726581150972,500.0,0.00025,120]
[338393382,1726581151026,1242.21,0.00025,120]
[338393383,1726581151929,679.16,0.00025,120]
[338393384,1726581152335,500.0,0.00025,120]
[338393385,1726581152836,500.0,0.00025,120]
[338393386,1726581153261,1048.63,0.00025,120]
[338393387,1726581155907,511.35533155,0.00025,120]
[338393388,1726581156081,819.03,0.00025,120]
[338393389,1726581156461,1658.48,0.00025,120]
[338393390,1726581157925,500.0,0.00025,120]
[338393391,1726581159540,1620.07,0.00025,120]
[338393392,1726581161199,500.0,0.00025,120]
[338393393,1726581161266,173.93842401,0.00025,120]
[338393394,1726581162599,500.0,0.00025,120]
[338393395,1726581162705,2422.88,0.00025,120]
[338393396,1726581164520,500.0,0.00025,120]
[338393397,1726581164574,4119.26,0.00025,120]
[338393398,1726581164763,1984.98,0.00025,120]
[338393399,1726581165104,500.0,0.00025,120]
[338393400,1726581165341,579.67,0.00025,120]
[338393401,1726581165497,500.0,0.00025,120]
[338393402,1726581166936,1510.91,0.00025,120]
[338393403,1726581167290,500.0,0.00025,120]
[338393404,1726581167352,2393.96,0.00025,120]
[338393405,1726581167412,500.0,0.00025,120]
[338393406,1726581168690,2401.1,0.00025,120]
[338393407,1726581169887,2145.43,0.00025,120]
[338393408,1726581170131,500.0,0.00025,120]
[338393409,1726581170487,500.0,0.00025,120]
[338393410,1726581170660,500.0,0.00025,120]
[338393411,1726581170818,536.35,0.00025,120]
[338393412,1726581170884,500.0,0.00025,120]
[338393413,1726581170953,568.15,0.00025,120]
[338393414,1726581171156,500.0,0.00025,120]
[338393415,1726581171638,500.0,0.00025,120]
[338393416,1726581171749,500.0,0.00025,120]
[338393417,1726581171966,500.0,0.00025,120]
[338393418,1726581172264,500.0,0.00025,120]
[338393419,1726581172383,515.89,0.00025,120]
[338393420,1726581172518,596.58861169,0.00025,120]
[338393421,1726581174832,3094.94,0.00025,120]
[338393422,1726581175592,500.0,0.00025,120]
[338393423,1726581176129,500.0,0.00025,120]
[338393424,1726581177502,1068.56,0.00025,120]
[338393425,1726581179523,727.05,0.00025,120]
[338393426,1726581179755,1074.87,0.00025,120]
[338393427,1726581182713,3155.45,0.00025,120]
[338393428,1726581182762,500.0,0.00025,120]
[338393429,1726581182867,4074.68,0.00025,120]
[338393430,1726581186879,500.0,0.00025,120]
[338393431,1726581188216,2925.77,0.00025,120]
[338393432,1726581188505,688.33,0.00025,120]
[338393433,1726581189286,3264.85,0.00025,120]
[338393434,1726581190130,500.0,0.00025,120]
[338393435,1726581193228,500.0,0.00025,120]
[338393436,1726581193288,500.0,0.00025,120]
[338393437,1726581193940,3134.93,0.00025,120]
[338393438,1726581195200,500.0,0.00025,120]
[338393439,1726581196077,1111.88,0.00025,120]
[338393440,1726581196641,500.0,0.00025,120]
[338393441,1726581196694,500.0,0.00025,120]
[338393442,1726581197826,590.34,0.00025,120]
[338393443,1726581199447,2906.17,0.00025,120]
[338393444,1726581199905,500.0,0.00025,120]
[338393445,1726581201537,2729.33,0.00025,120]
[338393446,1726581202475,500.0,0.00025,120]
[338393447,1726581202652,1260.3,0.00025,120]
[338393448,1726581204913,500.0,0.00025,120]
[338393449,1726581204975,838.65,0.00025,120]
[338393450,1726581205364,500.0,0.00025,120]
[338393451,1726581205776,1567.77,0.00025,120]
[338393452,1726581205908,500.0,0.00025,120]
[338393453,1726581207056,500.0,0.00025,120]
[338393454,1726581207652,500.0,0.00025,120]
[338393455,1726581207815,500.0,0.00025,120]
[338393456,1726581208951,3196.48,0.00025,120]
[338393457,1726581209476,1901.42,0.00025,120]
[338393458,1726581209549,500.0,0.00025,120]
[338393459,1726581211735,500.0,0.00025,120]
[338393460,1726581212045,645.04,0.00025,120]
[338393461,1726581212427,1801.54,0.00025,120]
[338393462,1726581213315,2533.56,0.00025,120]
[338393463,1726581214300,500.0,0.00025,120]
[338393464,1726581214652,865.75,0.00025,120]
[338393465,1726581214986,500.0,0.00025,120]
[338393466,1726581215280,500.0,0.00025,120]
[338393467,1726581215598,500.0,0.00025,120]
[338393468,1726581216224,1023.15,0.00025,120]
[338393469,1726581217419,500.0,0.00025,120]
[338393470,1726581218398,2649.2,0.00025,120]
[338393471,1726581220081,2045.33,0.00025,120]
[338393472,1726581220769,3188.0,0.00025,120]
[338393473,1726581221773,928.68,0.00025,120]
[338393474,1726581222150,1107.94,0.00025,120]
[338393475,1726581223703,500.0,0.00025,120]
[338393476,1726581223936,1533.54,0.00025,120]
[338393477,1726581226979,500.0,0.00025,120]
[338393478,1726581227031,602.43,0.00025,120]
[338393479,1726581227083,500.0,0.00025,120]
[338393480,1726581228424,500.0,0.00025,120]
[338393481,1726581228549,3948.84,0.00025,120]
[338393482,1726581229333,958.47,0.00025,120]
[338393483,1726581229396,500.0,0.00025,120]
[338393484,1726581230087,3259.43,0.00025,120]
[338393485,1726581230330,500.0,0.00025,120]
[338393486,1726581231488,500.0,0.00025,120]
[338393487,1726581234762,500.0,0.00025,120]
[338393488,1726581235263,500.0,0.00025,120]
[338393489,1726581237451,500.76478624,0.00025,120]
[338393490,1726581238645,1601.81,0.00025,120]
[338393491,1726581238843,500.0,0.00025,120]
[338393492,1726581239455,500.0,0.00025,120]
[338393493,1726581240011,500.0,0.00025,120]
[338393494,1726581240062,4159.67,0.00025,120]
[338393495,1726581240910,1870.01,0.00025,120]
[338393496,1726581241001,387.64963909,0.00025,120]
[338393497,1726581242896,500.0,0.00025,120]
[338393498,1726581243205,2596.26,0.00025,120]
[338393499,1726581245920,500.0,0.00025,120]
[338393500,1726581246112,1075.95,0.00025,120]
[338393501,1726581246345,10516.69,0.00025,120]
[338393502,1726581250198,500.0,0.00025,120]
[338393503,1726581253321,500.0,0.00025,120]
[338393504,1726581255058,1607.17,0.00025,120]
[338393505,1726581255239,1312.92,0.00025,120]
[338393506,1726581256091,500.27440821,0.00025,120]
[338393507,1726581257624,2911.11,0.00025,120]
[338393508,1726581257833,339.57582238,0.00025,120]
[338393509,1726581259910,500.0,0.00025,120]
[338393511,1726581261747,500.0,0.00025,120]
[338393512,1726581262228,2670.08,0.00025,120]
[338393513,1726581263587,684.56,0.00025,120]
[338393514,1726581264036,500.0,0.00025,120]
[338393515,1726581264322,500.0,0.00025,120]
[338393516,1726581265495,668.66,0.00025,120]
[338393517,1726581265885,500.0,0.00025,120]
[338393518,1726581266516,509.69,0.00025,120]
[338393519,1726581268003,1873.12,0.00025,120]
[338393520,1726581268964,227.93100719,0.00025,120]
[338393521,1726581270930,500.0,0.00025,120]
[338393522,1726581272640,500.0,0.00025,120]
[338393523,1726581272903,500.0,0.00025,120]
[338393524,1726581273888,500.0,0.00025,120]
[338393525,1726581274066,500.0,0.00025,120]
[338393526,1726581274238,1958.03,0.00025,120]
[338393527,1726581274347,500.0,0.00025,120]
[338393528,1726581274398,586.85,0.00025,120]
[338393529,1726581274779,3224.88,0.00025,120]
[338393530,1726581275431,500.0,0.00025,120]
[338393531,1726581277079,1604.88,0.00025,120]
[338393532,1726581277149,500.0,0.00025,120]
[338393533,1726581277207,1142.0,0.00025,120]
[338393534,1726581279403,1556.12,0.00025,120]
[338393535,1726581279763,3007.5,0.00025,120]
[338393536,1726581280268,500.0,0.00025,120]
[338393537,1726581281378,500.0,0.00025,120]
[338393538,1726581282698,1067.23,0.00025,120]
[338393539,1726581282746,578.69081158,0.00025,120]
[338393540,1726581283548,3140.6,0.00025,120]
[338393541,1726581284050,2771.83,0.00025,120]
[338393542,1726581284632,500.0,0.00025,120]
[338393543,1726581285172,500.0,0.00025,120]
[338393544,1726581285598,500.0,0.00025,120]
[338393545,1726581286548,370.5762342,0.00025,120]
[338393546,1726581289210,500.0,0.00025,120]
[338393547,1726581289750,2908.43,0.00025,120]
[338393548,1726581289959,1223.41,0.00025,120]
[338393549,1726581290010,1303.93,0.00025,120]
[338393552,1726581291178,500.0,0.00025,120]
[338393553,1726581291380,500.0,0.00025,120]
[338393554,1726581292378,633.56,0.00025,120]
[338393555,1726581292480,2621.37,0.00025,120]
[338393556,1726581295303,500.0,0.00025,120]
[338393557,1726581295448,1178.03,0.00025,120]
[338393558,1726581296371,1162.77,0.00025,120]
[338393559,1726581297033,500.0,0.00025,120]
[338393560,1726581299708,500.0,0.00025,120]
[338393561,1726581300397,1756.71,0.00025,120]
[338393562,1726581302334,500.0,0.00025,120]
[338393563,1726581303153,1915.7,0.00025,120]
[338393564,1726581304469,3178.86,0.00025,120]
[338393565,1726581304525,684.02,0.00025,120]
[338393566,1726581305533,545.73,0.00025,120]
[338393567,1726581308022,1126.01,0.00025,120]
[338393568,1726581309836,500.0,0.00025,120]
[338393569,1726581311131,287.91842401,0.00025,120]
[338393570,1726581312143,1323.51,0.00025,120]
[338393571,1726581313372,793.52,0.00025,120]
[338393572,1726581314554,754.71,0.00025,120]
[338393573,1726581317126,1375.0,0.00025,120]
[338393574,1726581320947,500.0,0.00025,120]
[338393575,1726581321740,500.0,0.00025,120]
[338393576,1726581323271,2749.8,0.00025,120]
[338393577,1726581323427,500.0,0.00025,120]
[338393578,1726581323506,500.0,0.00025,120]
[338393579,1726581326238,500.0,0.00025,120]
[338393580,1726581326479,13078.16,0.00025,120]
[338393581,1726581326721,500.0,0.00025,120]
[338393582,1726581326877,1190.45,0.00025,120]
[338393583,1726581327517,924.44,0.00025,120]
[338393584,1726581328918,1105.26,0.00025,120]
[338393585,1726581328980,500.0,0.00025,120]
[338393586,1726581329344,500.62470373,0.00025,120]
[338393587,1726581330660,502.86842851,0.00025,120]
[338393588,1726581330988,2301.06,0.00025,120]
[338393589,1726581331354,500.0,0.00025,120]
[338393590,1726581331436,500.0,0.00025,120]
[338393591,1726581331809,2946.49,0.00025,120]
[338393592,1726581332722,308.76899159,0.00025,120]
[338393593,1726581333079,3143.14,0.00025,120]
[338393594,1726581334040,500.0,0.00025,120]
[338393595,1726581334902,500.0,0.00025,120]
[338393596,1726581336582,7477.99,0.00025,120]
[338393597,1726581336636,500.0,0.00025,120]
[338393598,1726581336866,2790.68,0.00025,120]
[338393599,1726581338270,865.56,0.00025,120]
[338393600,1726581339523,503.76259852,0.00025,120]
[338393601,1726581339774,1953.08,0.00025,120]
[338393602,1726581340407,1004.94,0.00025,120]
[338393603,1726581340461,1953.08,0.00025,120]
[338393604,1726581340556,1953.08,0.00025,120]
[338393605,1726581340631,1953.08,0.00025,120]
[338393606,1726581340691,4130.61,0.00025,120]
[338393607,1726581340746,500.0,0.00025,120]
[338393608,1726581340830,1953.08,0.00025,120]
[338393609,1726581341129,1953.08,0.00025,120]
[338393610,1726581341398,1953.08,0.00025,120]
[338393611,1726581341685,1953.08,0.00025,120]
[338393612,1726581341739,500.0,0.00025,120]
[338393613,1726581341941,1953.08,0.00025,120]
[338393614,1726581342265,1953.08,0.00025,120]
[338393615,1726581342521,1953.08,0.00025,120]
[338393616,1726581342790,1953.08,0.00025,120]
[338393617,1726581343138,1953.08,0.00025,120]
[338393618,1726581343444,1953.08,0.00025,120]
[338393619,1726581343710,1953.08,0.00025,120]
[338393620,1726581344713,500.0,0.00025,120]
[338393621,1726581344774,1953.08,0.00025,120]
[338393622,1726581345052,1953.08,0.00025,120]
[338393623,1726581345192,2965.98,0.00025,120]
[338393624,1726581345550,500.0,0.00025,120]
[338393625,1726581345666,1953.08,0.00025,120]
[338393626,1726581345980,1953.08,0.00025,120]
[338393627,1726581346035,648.01,0.00025,120]
[338393628,1726581346180,500.0,0.00025,120]
[338393629,1726581346313,1953.08,0.00025,120]
[338393630,1726581346823,1953.08,0.00025,120]
[338393631,1726581347110,1953.08,0.00025,120]
[338393632,1726581347414,1953.08,0.00025,120]
[338393633,1726581347673,1953.20889024,0.00025,120]
[338393634,1726581348893,2321.93,0.00025,120]
[338393635,1726581349738,618.17,0.00025,120]
[338393637,1726581352514,500.0,0.00025,120]
[338393638,1726581352568,500.0,0.00025,120]
[338393639,1726581352630,500.0,0.00025,120]
[338393640,1726581354717,3715.48,0.00025,120]
[338393641,1726581355588,546.65,0.00025,120]
[338393642,1726581356406,500.0,0.00025,120]
[338393643,1726581357028,500.0,0.00025,120]
[338393644,1726581357346,500.0,0.00025,120]
[338393645,1726581357597,510.17642675,0.00025,120]
[338393646,1726581358082,2785.08,0.00025,120]
[338393647,1726581359799,538.94591201,0.00025,120]
[338393648,1726581360354,500.0,0.00025,120]
[338393649,1726581360412,930.96,0.00025,120]
[338393650,1726581361336,500.0,0.00025,120]
[338393651,1726581361406,916.52,0.00025,120]
[338393652,1726581363217,500.0,0.00025,120]
[338393653,1726581363679,3004.31,0.00025,120]
[338393654,1726581364782,500.0,0.00025,120]
[338393655,1726581365043,500.0,0.00025,120]
[338393656,1726581366936,500.0,0.00025,120]
[338393657,1726581367012,6247.84,0.00025,120]
[338393658,1726581367324,3063.29,0.00025,120]
[338393659,1726581368059,500.0,0.00025,120]
[338393660,1726581368151,500.62774394,0.00025,120]
[338393661,1726581368993,3879.2,0.00025,120]
[338393662,1726581369954,500.0,0.00025,120]
[338393663,1726581370081,500.0,0.00025,120]
[338393664,1726581370604,598.89,0.00025,120]
[338393665,1726581372739,500.0,0.00025,120]
[338393666,1726581373448,1207.78,0.00025,120]
[338393667,1726581373912,500.0,0.00025,120]
[338393668,1726581374442,500.0,0.00025,120]
[338393669,1726581376064,2957.97,0.00025,120]
[338393670,1726581376517,500.0,0.00025,120]
[338393671,1726581376918,500.0,0.00025,120]
[338393672,1726581378147,12186.16,0.00025,120]
[338393673,1726581378303,500.0,0.00025,120]
[338393674,1726581378621,507.19,0.00025,120]
[338393675,1726581379009,2294.22,0.00025,120]
[338393676,1726581379079,500.0,0.00025,120]
[338393677,1726581381384,500.0,0.00025,120]
[338393678,1726581382787,1726.48,0.00025,120]
[338393679,1726581383234,775.58,0.00025,120]
[338393680,1726581386086,500.0,0.00025,120]
[338393681,1726581388028,2426.95,0.00025,120]
[338393682,1726581389979,500.0,0.00025,120]
[338393683,1726581390221,500.0,0.00025,120]
[338393684,1726581392087,1775.54,0.00025,120]
[338393685,1726581392637,889.98,0.00025,120]
[338393686,1726581394511,926.77,0.00025,120]
[338393687,1726581394787,2427.99,0.00025,120]
[338393688,1726581395000,500.0,0.00025,120]
[338393689,1726581395200,500.0,0.00025,120]
[338393690,1726581397322,500.0,0.00025,120]
[338393691,1726581397545,554.34,0.00025,120]
[338393692,1726581399083,502.44464759,0.00025,120]
[338393693,1726581401092,229.69160595,0.00025,120]
[338393694,1726581401667,3128.81,0.00025,120]
[338393695,1726581402425,719.24,0.00025,120]
[338393696,1726581403298,3784.31,0.00025,120]
[338393697,1726581405031,500.0,0.00025,120]
[338393698,1726581406151,500.0,0.00025,120]
[338393699,1726581406809,1540.66,0.00025,120]
[338393700,1726581412542,500.0,0.00025,120]
[338393701,1726581412870,2170.41,0.00025,120]
[338393702,1726581414141,605.46,0.00025,120]
[338393703,1726581414395,500.0,0.00025,120]
[338393704,1726581414473,1822.19,0.00025,120]
[338393705,1726581415098,798.03,0.00025,120]
[338393706,1726581415404,1853.31,0.00025,120]
[338393707,1726581416589,3097.37,0.00025,120]
[338393708,1726581417424,500.0,0.00025,120]
[338393709,1726581418646,1065.53,0.00025,120]
[338393710,1726581418868,10078.49,0.00025,120]
[338393711,1726581420053,2104.45,0.00025,120]
[338393712,1726581421290,500.0,0.00025,120]
[338393713,1726581421786,500.0,0.00025,120]
[338393714,1726581423549,2942.7,0.00025,120]
[338393715,1726581424310,2847.67,0.00025,120]
[338393716,1726581424381,500.0,0.00025,120]
[338393717,1726581428240,500.0,0.00025,120]
[338393718,1726581428546,570.43579835,0.00025,120]
[338393719,1726581429097,500.0,0.00025,120]
[338393720,1726581430743,500.0,0.00025,120]
[338393721,1726581432036,500.0,0.00025,120]
[338393722,1726581432277,500.0,0.00025,120]
[338393723,1726581432829,500.0,0.00025,120]
[338393724,1726581433206,2538.81,0.00025,120]
[338393725,1726581433264,570.88,0.00025,120]
[338393726,1726581433944,2062.24,0.00025,120]
[338393727,1726581434781,1388.29,0.00025,120]
[338393728,1726581436550,1741.82,0.00025,120]
[338393729,1726581438804,1795.07,0.00025,120]
[338393730,1726581439503,1278.32,0.00025,120]
[338393731,1726581439656,392.18152674,0.00025,120]
[338393732,1726581445570,886.15,0.00025,120]